fUST/lending_fUST_20250609
["ID","MTS","AMOUNT","RATE_DAILY","PERIOD"]
[365017195,1749401438013,-107.15800382,0.00019078,2]
[365017196,1749401438024,-183.12,0.00019165,2]
[365017197,1749401438191,-281.83,0.00019168,3]
[365017198,1749401438202,-359.6697,0.00019178,2]
[365017199,1749401438213,-477.86246572,0.00019178,2]
[365017200,1749401438224,-430.0,0.00019178,2]
[365017201,1749401438235,-430.0,0.00019178,2]
[365017202,1749401438245,-440.0,0.00019178,2]
[365017203,1749401438255,-440.0,0.00019178,2]
[365017204,1749401438265,-440.0,0.00019178,2]
[365017205,1749401438276,-430.0,0.00019178,2]
[365017206,1749401438286,-440.0,0.00019178,2]
[365017207,1749401438296,-430.0,0.00019178,2]
[365017208,1749401438308,-430.0,0.00019178,2]
[365017209,1749401438319,-430.0,0.00019178,2]
[365017210,1749401438330,-430.0,0.00019178,2]
[365017211,1749401438340,-447.08012644,0.00019178,2]
[365017212,1749401438351,-430.0,0.00019178,2]
[365017213,1749401438361,-430.0,0.00019178,2]
[365017214,1749401438371,-536.80791853,0.00019178,2]
[365017215,1749401438382,-382.77796731,0.00019178,2]
[365017216,1749401438393,-430.0,0.00019178,2]
[365017217,1749401438403,-440.0,0.00019178,2]
[365017218,1749401438413,-440.0,0.00019178,2]
[365017219,1749401438424,-97.00768548,0.00019178,2]
[365017220,1749401438445,-332.97942887,0.00019178,2]
[365017221,1749401438461,-10.01288565,0.00019178,2]
[365017222,1749401438470,-430.0,0.00019178,2]
[365017223,1749401438480,-440.0,0.00019178,2]
[365017224,1749401438489,-208.95061323,0.00019178,2]
[365017225,1749401438500,-221.04938677,0.00019178,2]
[365017226,1749401438510,-430.0,0.00019178,2]
[365017227,1749401438519,-440.0,0.00019178,2]
[365017228,1749401438529,-440.0,0.00019178,2]
[365017229,1749401438539,-430.0,0.00019178,2]
[365017230,1749401438549,-430.0,0.00019178,2]
[365017231,1749401438558,-430.0,0.00019178,2]
[365017232,1749401438568,-490.0,0.00019178,2]
[365017233,1749401438578,-430.0,0.00019178,2]
[365017234,1749401438588,-430.0,0.00019178,2]
[365017235,1749401438598,-336.82939588,0.00019178,2]
[365017236,1749401438607,-522.02060256,0.00019178,2]
[365017237,1749401438618,-430.0,0.00019178,2]
[365017238,1749401438627,-440.0,0.00019178,2]
[365017239,1749401438638,-440.0,0.00019178,2]
[365017240,1749401438647,-440.0,0.00019178,2]
[365017241,1749401438657,-440.0,0.00019178,2]
[365017242,1749401438666,-430.0,0.00019178,2]
[365017243,1749401438675,-440.0,0.00019178,2]
[365017244,1749401438685,-440.0,0.00019178,2]
[365017245,1749401438695,-440.0,0.00019178,2]
[365017246,1749401438704,-430.0,0.00019178,2]
[365017247,1749401438714,-440.0,0.00019178,2]
[365017248,1749401438724,-440.0,0.00019178,2]
[365017249,1749401438733,-430.0,0.00019178,2]
[365017250,1749401438743,-440.0,0.00019178,2]
[365017251,1749401438752,-440.0,0.00019178,2]
[365017252,1749401438762,-440.0,0.00019178,2]
[365017253,1749401438771,-440.0,0.00019178,2]
[365017254,1749401438782,-430.0,0.00019178,2]
[365017255,1749401438791,-210.96170617,0.00019178,2]
[365017256,1749401438801,-440.0,0.00019178,2]
[365017257,1749401438811,-430.0,0.00019178,2]
[365017258,1749401438820,-430.0,0.00019178,2]
[365017259,1749401438831,-467.92,0.00019178,2]
[365017260,1749401438840,-544.95,0.00019178,2]
[365017261,1749401438850,-440.0,0.00019178,2]
[365017262,1749401438860,-440.0,0.00019178,2]
[365017263,1749401438869,-440.0,0.00019178,2]
[365017264,1749401438880,-440.0,0.00019178,2]
[365017265,1749401438890,-1304.02,0.00019178,2]
[365017266,1749401438900,-440.0,0.00019178,2]
[365017267,1749401438909,-440.0,0.00019178,2]
[365017268,1749401438919,-440.0,0.00019178,2]
[365017269,1749401438928,-440.0,0.00019178,2]
[365017270,1749401438950,-440.0,0.00019178,2]
[365017271,1749401438961,-440.0,0.00019178,2]
[365017272,1749401438971,-430.0,0.00019178,2]
[365017273,1749401438982,-440.0,0.00019178,2]
[365017274,1749401438993,-440.0,0.00019178,2]
[365017275,1749401439004,-440.0,0.00019178,2]
[365017276,1749401439015,-440.0,0.00019178,2]
[365017277,1749401439025,-588.66,0.00019178,2]
[365017278,1749401439037,-440.0,0.00019178,2]
[365017279,1749401439049,-430.0,0.00019178,2]
[365017280,1749401439060,-554.01,0.00019178,2]
[365017281,1749401439070,-440.0,0.00019178,2]
[365017282,1749401439079,-1293.71,0.00019178,2]
[365017283,1749401439090,-526.18812099,0.00019178,2]
[365017284,1749401439100,-430.0,0.00019178,2]
[365017285,1749401439110,-430.0,0.00019178,2]
[365017286,1749401439120,-440.0,0.00019178,2]
[365017287,1749401439131,-360.6867807,0.00019178,2]
[365017288,1749401439141,-210.12001961,0.00019178,2]
[365017289,1749401439151,-275.13309956,0.00019178,2]
[365017290,1749401439162,-440.0,0.00019178,2]
[365017291,1749401439172,-440.0,0.00019178,2]
[365017292,1749401439182,-440.0,0.00019178,2]
[365017293,1749401439192,-430.0,0.00019178,2]
[365017294,1749401439201,-440.0,0.00019178,2]
[365017295,1749401439212,-440.0,0.00019178,2]
[365017296,1749401439222,-430.0,0.00019178,2]
[365017297,1749401439232,-440.0,0.00019178,2]
[365017298,1749401439243,-440.0,0.00019178,2]
[365017299,1749401439253,-306.92071621,0.00019178,2]
[365017300,1749401439264,-430.0,0.00019178,2]
[365017301,1749401439274,-430.0,0.00019178,2]
[365017302,1749401439284,-440.0,0.00019178,2]
[365017303,1749401439294,-430.0,0.00019178,2]
[365017304,1749401439304,-440.0,0.00019178,2]
[365017305,1749401439315,-430.0,0.00019178,2]
[365017306,1749401439325,-440.0,0.00019178,2]
[365017307,1749401439335,-430.0,0.00019178,2]
[365017308,1749401439346,-440.0,0.00019178,2]
[365017309,1749401439356,-978.27,0.00019178,2]
[365017310,1749401439366,-1023.29,0.00019178,2]
[365017311,1749401439376,-440.0,0.00019178,2]
[365017312,1749401439386,-430.0,0.00019178,2]
[365017313,1749401439396,-534.36,0.00019178,2]
[365017314,1749401439406,-430.0,0.00019178,2]
[365017315,1749401439416,-1081.08,0.00019178,2]
[365017316,1749401439426,-430.0,0.00019178,2]
[365017317,1749401439436,-430.0,0.00019178,2]
[365017318,1749401439446,-430.0,0.00019178,2]
[365017319,1749401439456,-440.0,0.00019178,2]
[365017320,1749401439466,-430.0,0.00019178,2]
[365017321,1749401439475,-440.0,0.00019178,2]
[365017322,1749401439485,-430.0,0.00019178,2]
[365017323,1749401439494,-1426.71,0.00019178,2]
[365017324,1749401439504,-440.0,0.00019178,2]
[365017325,1749401439514,-430.0,0.00019178,2]
[365017326,1749401439524,-1697.6,0.00019178,2]
[365017327,1749401439535,-440.0,0.00019178,2]
[365017328,1749401439548,-440.0,0.00019178,2]
[365017329,1749401439559,-996.34,0.00019178,2]
[365017330,1749401439575,-440.0,0.00019178,2]
[365017331,1749401439585,-440.0,0.00019178,2]
[365017332,1749401439595,-1222.59,0.00019178,2]
[365017333,1749401439606,-440.0,0.00019178,2]
[365017334,1749401439616,-505.83,0.00019178,2]
[365017335,1749401439627,-440.0,0.00019178,2]
[365017336,1749401439637,-672.88,0.00019178,2]
[365017337,1749401439647,-440.0,0.00019178,2]
[365017338,1749401439656,-440.0,0.00019178,2]
[365017339,1749401439666,-440.0,0.00019178,2]
[365017340,1749401439676,-440.0,0.00019178,2]
[365017341,1749401439686,-169.30264,0.00019178,2]
[365017342,1749401439696,-845.49,0.00019442,3]
[365017343,1749401439705,-440.0,0.00019452,2]
[365017344,1749401439716,-430.0,0.00019452,2]
[365017345,1749401439726,-420.0,0.00019452,2]
[365017346,1749401439736,-420.0,0.00019452,2]
[365017347,1749401439745,-440.0,0.00019452,2]
[365017348,1749401439755,-440.0,0.00019452,2]
[365017349,1749401439766,-440.0,0.00019452,2]
[365017350,1749401439775,-420.0,0.00019452,2]
[365017351,1749401439785,-314.48293153,0.00019452,2]
[365017352,1749401439795,-431.55892203,0.00019452,2]
[365017354,1749401439804,-440.0,0.00019452,2]
[365017355,1749401439815,-430.0,0.00019452,2]
[365017356,1749401439825,-420.0,0.00019452,2]
[365017357,1749401439835,-430.0,0.00019452,2]
[365017358,1749401439845,-430.0,0.00019452,2]
[365017359,1749401439855,-440.0,0.00019452,2]
[365017360,1749401439865,-440.0,0.00019452,2]
[365017361,1749401439875,-467.92,0.00019452,2]
[365017362,1749401439884,-544.95,0.00019452,2]
[365017363,1749401439894,-440.0,0.00019452,2]
[365017364,1749401439904,-438.26,0.00019452,2]
[365017365,1749401439914,-440.0,0.00019452,2]
[365017366,1749401439924,-330.0,0.00019452,2]
[365017367,1749401439935,-1304.02,0.00019452,2]
[365017368,1749401439944,-440.0,0.00019452,2]
[365017369,1749401439954,-440.0,0.00019452,2]
[365017370,1749401439964,-440.0,0.00019452,2]
[365017371,1749401439974,-440.0,0.00019452,2]
[365017372,1749401439984,-440.0,0.00019452,2]
[365017373,1749401439994,-440.0,0.00019452,2]
[365017374,1749401440004,-440.0,0.00019452,2]
[365017375,1749401440014,-440.0,0.00019452,2]
[365017376,1749401440024,-440.0,0.00019452,2]
[365017377,1749401440034,-588.66,0.00019452,2]
[365017378,1749401440045,-440.0,0.00019452,2]
[365017379,1749401440055,-554.01,0.00019452,2]
[365017380,1749401440066,-440.0,0.00019452,2]
[365017381,1749401440076,-1293.71,0.00019452,2]
[365017382,1749401440086,-440.0,0.00019452,2]
[365017383,1749401440096,-440.0,0.00019452,2]
[365017384,1749401440107,-440.0,0.00019452,2]
[365017385,1749401440117,-440.0,0.00019452,2]
[365017386,1749401440127,-440.0,0.00019452,2]
[365017387,1749401440137,-440.0,0.00019452,2]
[365017388,1749401440147,-420.0,0.00019452,2]
[365017389,1749401440158,-440.0,0.00019452,2]
[365017390,1749401440167,-440.0,0.00019452,2]
[365017391,1749401440178,-440.0,0.00019452,2]
[365017392,1749401440190,-440.0,0.00019452,2]
[365017393,1749401440200,-978.27,0.00019452,2]
[365017394,1749401440210,-1023.29,0.00019452,2]
[365017396,1749401440220,-420.0,0.00019452,2]
[365017398,1749401440231,-534.36,0.00019452,2]
[365017400,1749401440241,-1081.08,0.00019452,2]
[365017402,1749401440251,-440.0,0.00019452,2]
[365017404,1749401440261,-440.0,0.00019452,2]
[365017406,1749401440271,-1426.71,0.00019452,2]
[365017408,1749401440281,-440.0,0.00019452,2]
[365017411,1749401440291,-1697.6,0.00019452,2]
[365017413,1749401440301,-430.0,0.00019452,2]
[365017414,1749401440311,-440.0,0.00019452,2]
[365017417,1749401440322,-996.34,0.00019452,2]
[365017419,1749401440332,-440.0,0.00019452,2]
[365017421,1749401440342,-440.0,0.00019452,2]
[365017423,1749401440352,-1222.59,0.00019452,2]
[365017425,1749401440362,-440.0,0.00019452,2]
[365017426,1749401440372,-505.83,0.00019452,2]
[365017427,1749401440382,-440.0,0.00019452,2]
[365017428,1749401440392,-672.88,0.00019452,2]
[365017429,1749401440402,-440.0,0.00019452,2]
[365017430,1749401440412,-420.0,0.00019452,2]
[365017431,1749401440423,-440.0,0.00019452,2]
[365017432,1749401440433,-440.0,0.00019452,2]
[365017433,1749401440443,-500.0,0.00019479,2]
[365017434,1749401440453,-440.0,0.00019726,2]
[365017435,1749401440463,-420.0,0.00019726,2]
[365017436,1749401440473,-440.0,0.00019726,2]
[365017437,1749401440483,-397.78,0.00019726,2]
[365017438,1749401440493,-440.0,0.00019726,2]
[365017439,1749401440503,-440.0,0.00019726,2]
[365017440,1749401440514,-467.92,0.00019726,2]
[365017441,1749401440524,-544.95,0.00019726,2]
[365017443,1749401440534,-440.0,0.00019726,2]
[365017444,1749401440544,-440.0,0.00019726,2]
[365017445,1749401440553,-1304.02,0.00019726,2]
[365017446,1749401440563,-440.0,0.00019726,2]
[365017447,1749401440574,-440.0,0.00019726,2]
[365017448,1749401440583,-440.0,0.00019726,2]
[365017449,1749401440593,-440.0,0.00019726,2]
[365017450,1749401440604,-440.0,0.00019726,2]
[365017451,1749401440614,-588.66,0.00019726,2]
[365017452,1749401440624,-440.0,0.00019726,2]
[365017453,1749401440634,-554.01,0.00019726,2]
[365017454,1749401440644,-440.0,0.00019726,2]
[365017455,1749401440654,-1293.71,0.00019726,2]
[365017456,1749401440664,-440.0,0.00019726,2]
[365017457,1749401440674,-440.0,0.00019726,2]
[365017458,1749401440684,-440.0,0.00019726,2]
[365017459,1749401440693,-440.0,0.00019726,2]
[365017460,1749401440703,-440.0,0.00019726,2]
[365017461,1749401440713,-978.27,0.00019726,2]
[365017462,1749401440723,-1023.29,0.00019726,2]
[365017463,1749401440733,-534.36,0.00019726,2]
[365017464,1749401440743,-1081.08,0.00019726,2]
[365017465,1749401440754,-440.0,0.00019726,2]
[365017466,1749401440764,-440.0,0.00019726,2]
[365017467,1749401440774,-1426.71,0.00019726,2]
[365017468,1749401440784,-1697.6,0.00019726,2]
[365017469,1749401440794,-440.0,0.00019726,2]
[365017470,1749401440804,-996.34,0.00019726,2]
[365017471,1749401440814,-440.0,0.00019726,2]
[365017472,1749401440824,-440.0,0.00019726,2]
[365017473,1749401440833,-1222.59,0.00019726,2]
[365017474,1749401440844,-440.0,0.00019726,2]
[365017475,1749401440854,-505.83,0.00019726,2]
[365017476,1749401440864,-440.0,0.00019726,2]
[365017477,1749401440875,-672.88,0.00019726,2]
[365017478,1749401440885,-440.0,0.00019726,2]
[365017479,1749401440895,-440.0,0.00019726,2]
[365017480,1749401440905,-410.0,0.00019726,2]
[365017481,1749401440915,-440.0,0.0002,2]
[365017482,1749401440925,-420.0,0.0002,2]
[365017483,1749401440935,-440.0,0.0002,2]
[365017484,1749401440946,-440.0,0.0002,2]
[365017485,1749401440957,-467.92,0.0002,2]
[365017486,1749401440966,-544.95,0.0002,2]
[365017487,1749401440976,-440.0,0.0002,2]
[365017488,1749401440985,-440.0,0.0002,2]
[365017489,1749401440995,-1304.02,0.0002,2]
[365017490,1749401441004,-440.0,0.0002,2]
[365017491,1749401441014,-440.0,0.0002,2]
[365017492,1749401441025,-440.0,0.0002,2]
[365017493,1749401441034,-473.32,0.0002,2]
[365017494,1749401441044,-588.66,0.0002,2]
[365017495,1749401441054,-440.0,0.0002,2]
[365017496,1749401441064,-554.01,0.0002,2]
[365017497,1749401441074,-440.0,0.0002,2]
[365017498,1749401441084,-1293.71,0.0002,2]
[365017499,1749401441095,-440.0,0.0002,2]
[365017500,1749401441105,-440.0,0.0002,2]
[365017501,1749401441115,-420.0,0.0002,2]
[365017502,1749401441125,-440.0,0.0002,2]
[365017503,1749401441135,-440.0,0.0002,2]
[365017504,1749401441145,-978.27,0.0002,2]
[365017505,1749401441155,-1023.29,0.0002,2]
[365017506,1749401441166,-534.36,0.0002,2]
[365017507,1749401441176,-1081.08,0.0002,2]
[365017508,1749401441186,-440.0,0.0002,2]
[365017509,1749401441196,-1426.71,0.0002,2]
[365017510,1749401441206,-1697.6,0.0002,2]
[365017511,1749401441216,-275.89,0.0002,2]
[365017512,1749401441226,-996.34,0.0002,2]
[365017513,1749401441237,-440.0,0.0002,2]
[365017514,1749401441246,-440.0,0.0002,2]
[365017515,1749401441256,-1222.59,0.0002,2]
[365017516,1749401441266,-440.0,0.0002,2]
[365017517,1749401441276,-505.83,0.0002,2]
[365017518,1749401441286,-440.0,0.0002,2]
[365017519,1749401441295,-672.88,0.0002,2]
[365017520,1749401441305,-440.0,0.0002,2]
[365017521,1749401441317,-440.0,0.0002,2]
[365017522,1749401441326,-1000.0,0.00020027,2]
[365017523,1749401441336,-186.32093108,0.00020092,2]
[365017524,1749401441346,-229.60437222,0.00020155,2]
[365017525,1749401441357,-842.5625,0.00020155,2]
[365017526,1749401441367,-834.50537533,0.00020155,2]
[365017527,1749401441376,-423.98131849,0.00020156,2]
[365017528,1749401441386,-160.0,0.00020156,2]
[365017529,1749401441398,-440.0,0.00020273,2]
[365017530,1749401441408,-320.0,0.00020273,2]
[365017531,1749401441417,-440.0,0.00020273,2]
[365017532,1749401441428,-467.92,0.00020273,2]
[365017533,1749401441437,-544.95,0.00020273,2]
[365017534,1749401441447,-440.0,0.00020273,2]
[365017535,1749401441456,-440.0,0.00020273,2]
[365017536,1749401441466,-1304.02,0.00020273,2]
[365017537,1749401441476,-440.0,0.00020273,2]
[365017538,1749401441486,-440.0,0.00020273,2]
[365017539,1749401441495,-440.0,0.00020273,2]
[365017540,1749401441505,-588.66,0.00020273,2]
[365017541,1749401441516,-499.18,0.00020273,2]
[365017542,1749401441526,-554.01,0.00020273,2]
[365017543,1749401441536,-440.0,0.00020273,2]
[365017544,1749401441552,-1293.71,0.00020273,2]
[365017545,1749401441562,-440.0,0.00020273,2]
[365017546,1749401441572,-440.0,0.00020273,2]
[365017547,1749401441581,-233.16,0.00020273,2]
[365017548,1749401441592,-440.0,0.00020273,2]
[365017549,1749401441602,-978.27,0.00020273,2]
[365017550,1749401441612,-1023.29,0.00020273,2]
[365017551,1749401441623,-534.36,0.00020273,2]
[365017552,1749401441633,-1081.08,0.00020273,2]
[365017553,1749401441643,-440.0,0.00020273,2]
[365017554,1749401441653,-1426.71,0.00020273,2]
[365017555,1749401441662,-1697.6,0.00020273,2]
[365017556,1749401441672,-996.34,0.00020273,2]
[365017557,1749401441681,-440.0,0.00020273,2]
[365017558,1749401441692,-440.0,0.00020273,2]
[365017559,1749401441701,-1222.59,0.00020273,2]
[365017560,1749401441710,-440.0,0.00020273,2]
[365017561,1749401441720,-505.83,0.00020273,2]
[365017562,1749401441730,-440.0,0.00020273,2]
[365017563,1749401441741,-672.88,0.00020273,2]
[365017564,1749401441751,-440.0,0.00020273,2]
[365017565,1749401441760,-440.0,0.00020273,2]
[365017566,1749401441770,-547.34,0.00020305,2]
[365017567,1749401441780,-740.47617757,0.0002044,2]
[365017568,1749401441790,-563.66,0.00020538,3]
[365017569,1749401441800,-440.0,0.00020547,2]
[365017570,1749401441809,-440.0,0.00020547,2]
[365017571,1749401441819,-467.92,0.00020547,2]
[365017572,1749401441829,-544.95,0.00020547,2]
[365017573,1749401441841,-430.0,0.00020547,2]
[365017574,1749401441852,-440.0,0.00020547,2]
[365017575,1749401441863,-1304.02,0.00020547,2]
[365017576,1749401441872,-440.0,0.00020547,2]
[365017577,1749401442029,-440.0,0.00020547,2]
[365017578,1749401442039,-440.0,0.00020547,2]
[365017579,1749401442050,-588.66,0.00020547,2]
[365017580,1749401442059,-554.01,0.00020547,2]
[365017581,1749401442070,-440.0,0.00020547,2]
[365017582,1749401442080,-1293.71,0.00020547,2]
[365017583,1749401442089,-440.0,0.00020547,2]
[365017584,1749401442100,-440.0,0.00020547,2]
[365017585,1749401442110,-440.0,0.00020547,2]
[365017586,1749401442120,-1023.29,0.00020547,2]
[365017587,1749401442133,-978.27,0.00020547,2]
[365017588,1749401442145,-534.36,0.00020547,2]
[365017589,1749401442160,-1081.08,0.00020547,2]
[365017590,1749401442171,-440.0,0.00020547,2]
[365017591,1749401442181,-1426.71,0.00020547,2]
[365017592,1749401442190,-1697.6,0.00020547,2]
[365017593,1749401442200,-996.34,0.00020547,2]
[365017594,1749401442210,-440.0,0.00020547,2]
[365017595,1749401442220,-440.0,0.00020547,2]
[365017596,1749401442231,-1222.59,0.00020547,2]
[365017597,1749401442240,-440.0,0.00020547,2]
[365017598,1749401442250,-505.83,0.00020547,2]
[365017599,1749401442261,-440.0,0.00020547,2]
[365017600,1749401442273,-672.88,0.00020547,2]
[365017601,1749401442282,-440.0,0.00020547,2]
[365017602,1749401442292,-1500.0,0.00020575,2]
[365017603,1749401442302,-577.9,0.000206,2]
[365017604,1749401442312,-1571.14,0.000206,2]
[365017605,1749401442321,-440.0,0.00020821,2]
[365017606,1749401442331,-1000.0,0.00020821,2]
[365017607,1749401442341,-440.0,0.00020821,2]
[365017608,1749401442352,-467.92,0.00020821,2]
[365017609,1749401442362,-544.95,0.00020821,2]
[365017610,1749401442372,-440.0,0.00020821,2]
[365017611,1749401442381,-1304.02,0.00020821,2]
[365017612,1749401442391,-203.17,0.00020821,2]
[365017613,1749401442402,-440.0,0.00020821,2]
[365017614,1749401442411,-440.0,0.00020821,2]
[365017615,1749401442421,-588.66,0.00020821,2]
[365017616,1749401442431,-554.01,0.00020821,2]
[365017617,1749401442441,-440.0,0.00020821,2]
[365017618,1749401442451,-1293.71,0.00020821,2]
[365017619,1749401442461,-440.0,0.00020821,2]
[365017620,1749401442471,-440.0,0.00020821,2]
[365017621,1749401442480,-1023.29,0.00020821,2]
[365017622,1749401442489,-978.27,0.00020821,2]
[365017623,1749401442499,-534.36,0.00020821,2]
[365017624,1749401442508,-1081.08,0.00020821,2]
[365017625,1749401442518,-440.0,0.00020821,2]
[365017626,1749401442528,-1426.71,0.00020821,2]
[365017628,1749401442538,-1697.6,0.00020821,2]
[365017630,1749401442548,-996.34,0.00020821,2]
[365017631,1749401442557,-440.0,0.00020821,2]
[365017632,1749401442567,-1222.59,0.00020821,2]
[365017633,1749401442576,-505.83,0.00020821,2]
[365017634,1749401442586,-440.0,0.00020821,2]
[365017635,1749401442595,-672.88,0.00020821,2]
[365017636,1749401442605,-440.0,0.00020821,2]
[365017637,1749401442615,-590.6763359,0.00020962,2]
[365017638,1749401442624,-440.0,0.00021095,2]
[365017639,1749401442634,-440.0,0.00021095,2]
[365017640,1749401442644,-467.92,0.00021095,2]
[365017641,1749401442654,-544.95,0.00021095,2]
[365017642,1749401442663,-440.0,0.00021095,2]
[365017643,1749401442672,-1304.02,0.00021095,2]
[365017644,1749401442682,-440.0,0.00021095,2]
[365017646,1749401442691,-440.0,0.00021095,2]
[365017647,1749401442701,-588.66,0.00021095,2]
[365017648,1749401442711,-554.01,0.00021095,2]
[365017649,1749401442720,-542.85,0.00021095,2]
[365017651,1749401442730,-1293.71,0.00021095,2]
[365017652,1749401442740,-440.0,0.00021095,2]
[365017653,1749401442749,-440.0,0.00021095,2]
[365017654,1749401442759,-1023.29,0.00021095,2]
[365017656,1749401442768,-978.27,0.00021095,2]
[365017658,1749401442777,-534.36,0.00021095,2]
[365017659,1749401442787,-1081.08,0.00021095,2]
[365017660,1749401442797,-420.0,0.00021095,2]
[365017662,1749401442806,-1426.71,0.00021095,2]
[365017663,1749401442816,-1697.6,0.00021095,2]
[365017664,1749401442826,-996.34,0.00021095,2]
[365017665,1749401442837,-440.0,0.00021095,2]
[365017666,1749401442847,-1222.59,0.00021095,2]
[365017667,1749401442857,-505.83,0.00021095,2]
[365017668,1749401442867,-440.0,0.00021095,2]
[365017669,1749401442877,-672.88,0.00021095,2]
[365017670,1749401442887,-328.92,0.00021095,2]
[365017671,1749401442896,-186.32093108,0.00021107,2]
[365017672,1749401442905,-500.0,0.00021123,2]
[365017673,1749401442914,-162.98031191,0.00021234,2]
[365017674,1749401442924,-315.32089771,0.00021295,2]
[365017675,1749401442933,-500.0,0.00021318,2]
[365017676,1749401442943,-500.0,0.00021354,2]
[365017677,1749401442952,-500.0,0.00021354,2]
[365017678,1749401442962,-500.0,0.00021354,2]
[365017679,1749401442972,-600.0,0.00021354,2]
[365017680,1749401442981,-500.0,0.00021354,2]
[365017681,1749401442990,-500.0,0.00021354,2]
[365017682,1749401442999,-500.0,0.00021354,2]
[365017683,1749401443009,-205.49080572,0.00021354,2]
[365017684,1749401443019,-440.0,0.00021369,2]
[365017685,1749401443028,-440.0,0.00021369,2]
[365017686,1749401443038,-467.92,0.00021369,2]
[365017687,1749401443047,-544.95,0.00021369,2]
[365017688,1749401443057,-440.0,0.00021369,2]
[365017689,1749401443067,-1304.02,0.00021369,2]
[365017690,1749401443077,-440.0,0.00021369,2]
[365017691,1749401443086,-588.66,0.00021369,2]
[365017692,1749401443096,-554.01,0.00021369,2]
[365017693,1749401443106,-1293.71,0.00021369,2]
[365017694,1749401443116,-440.0,0.00021369,2]
[365017695,1749401443126,-440.0,0.00021369,2]
[365017696,1749401443135,-1023.29,0.00021369,2]
[365017697,1749401443145,-978.27,0.00021369,2]
[365017698,1749401443154,-534.36,0.00021369,2]
[365017699,1749401443164,-1081.08,0.00021369,2]
[365017700,1749401443174,-1426.71,0.00021369,2]
[365017701,1749401443184,-1697.6,0.00021369,2]
[365017703,1749401443194,-996.34,0.00021369,2]
[365017705,1749401443204,-440.0,0.00021369,2]
[365017707,1749401443214,-1222.59,0.00021369,2]
[365017709,1749401443223,-505.83,0.00021369,2]
[365017711,1749401443233,-440.0,0.00021369,2]
[365017713,1749401443243,-672.88,0.00021369,2]
[365017715,1749401443252,-163.12665,0.00021404,2]
[365017717,1749401443262,-3000.00000099,0.000215,3]
[365017719,1749401443272,-316.31885357,0.00021542,2]
[365017721,1749401443282,-501.61992717,0.00021623,2]
[365017723,1749401443291,-500.0,0.00021642,2]
[365017725,1749401443301,-500.0,0.00021642,2]
[365017727,1749401443311,-440.0,0.00021643,2]
[365017728,1749401443320,-440.0,0.00021643,2]
[365017729,1749401443331,-467.92,0.00021643,2]
[365017730,1749401443341,-544.95,0.00021643,2]
[365017731,1749401443350,-440.0,0.00021643,2]
[365017732,1749401443360,-1304.02,0.00021643,2]